[Event "Titled Tuesday Blitz October 31 Late 2023"]
[White "Quesada Perez, Yasser"]
[Black "Sivakumar, Shaaketh"]
[WhiteFideId "3509362"]
[BlackFideId "30940176"]
[WhiteElo "2888"]
[BlackElo "2582"]
[Result "0-1"]
[Round "2"]
[TimeControl "180+1"]
[Date "2023.10.31"]
[WhiteClock "0:00:04"]
[BlackClock "0:00:30"]
[Board "26"]

1. d4 {[%clk 0:03:00]}  e6 {[%clk 0:02:55]} 2. Bf4 {[%clk 0:02:55]}  Nf6 {[%clk 0:02:52]} 3. e3 {[%clk 0:02:55]}  b6 {[%clk 0:02:50]} 4. Nf3 {[%clk 0:02:52]}  Bb7 {[%clk 0:02:50]} 5. Bd3 {[%clk 0:02:51]}  d6 {[%clk 0:02:48]} 6. O-O {[%clk 0:02:51]}  Nbd7 {[%clk 0:02:48]} 7. h3 {[%clk 0:02:52]}  Be7 {[%clk 0:02:47]} 8. Bh2 {[%clk 0:02:51]}  O-O {[%clk 0:02:47]} 9. a4 {[%clk 0:02:52]}  a6 {[%clk 0:02:47]} 10. Nbd2 {[%clk 0:02:49]}  Re8 {[%clk 0:02:46]} 11. e4 {[%clk 0:02:48]}  Bf8 {[%clk 0:02:41]} 12. c3 {[%clk 0:02:46]}  e5 {[%clk 0:02:41]} 13. Re1 {[%clk 0:02:45]}  c5 {[%clk 0:02:40]} 14. d5 {[%clk 0:02:39]}  g6 {[%clk 0:02:36]} 15. b4 {[%clk 0:02:37]}  Nh5 {[%clk 0:02:25]} 16. b5 {[%clk 0:02:35]}  a5 {[%clk 0:02:19]} 17. Nc4 {[%clk 0:02:35]}  Ng7 {[%clk 0:02:07]} 18. Bf1 {[%clk 0:02:15]}  f5 {[%clk 0:01:58]} 19. exf5 {[%clk 0:02:14]}  gxf5 {[%clk 0:01:59]} 20. Bg3 {[%clk 0:02:02]}  Be7 {[%clk 0:01:54]} 21. Qd2 {[%clk 0:01:57]}  f4 {[%clk 0:01:51]} 22. Bh2 {[%clk 0:01:50]}  Nf6 {[%clk 0:01:51]} 23. Rad1 {[%clk 0:01:39]}  Bxd5 {[%clk 0:01:49]} 24. Kh1 {[%clk 0:01:20]}  Qc7 {[%clk 0:01:32]} 25. Qc2 {[%clk 0:01:18]}  Qb7 {[%clk 0:01:26]} 26. Ncd2 {[%clk 0:01:02]}  Kh8 {[%clk 0:01:24]} 27. Bc4 {[%clk 0:01:01]}  Bxf3 {[%clk 0:01:15]} 28. Nxf3 {[%clk 0:01:01]}  d5 {[%clk 0:01:13]} 29. Bf1 {[%clk 0:00:52]}  Bd6 {[%clk 0:01:14]} 30. Ng5 {[%clk 0:00:51]}  h6 {[%clk 0:01:12]} 31. Qg6 {[%clk 0:00:52]}  hxg5 {[%clk 0:01:05]} 32. Qxf6 {[%clk 0:00:50]}  Re6 {[%clk 0:00:58]} 33. Qxg5 {[%clk 0:00:50]}  Rf8 {[%clk 0:00:54]} 34. Be2 {[%clk 0:00:48]}  Rf5 {[%clk 0:00:49]} 35. Qh4+ {[%clk 0:00:47]}  Kg8 {[%clk 0:00:48]} 36. Bg4 {[%clk 0:00:48]}  Be7 {[%clk 0:00:47]} 37. Bxf5 {[%clk 0:00:44]}  Bxh4 {[%clk 0:00:46]} 38. Bxe6+ {[%clk 0:00:45]}  Nxe6 {[%clk 0:00:47]} 39. Rxe5 {[%clk 0:00:45]}  Nc7 {[%clk 0:00:44]} 40. Bxf4 {[%clk 0:00:44]}  Bf6 {[%clk 0:00:45]} 41. Rf5 {[%clk 0:00:43]}  Kg7 {[%clk 0:00:45]} 42. Re1 {[%clk 0:00:38]}  Qc8 {[%clk 0:00:39]} 43. g4 {[%clk 0:00:38]}  Ne6 {[%clk 0:00:39]} 44. Bg3 {[%clk 0:00:33]}  Bxc3 {[%clk 0:00:38]} 45. h4 {[%clk 0:00:32]}  Bxe1 {[%clk 0:00:38]} 46. Be5+ {[%clk 0:00:30]}  Kg8 {[%clk 0:00:38]} 47. h5 {[%clk 0:00:30]}  d4 {[%clk 0:00:35]} 48. h6 {[%clk 0:00:30]}  d3 {[%clk 0:00:35]} 49. g5 {[%clk 0:00:20]}  Qe8 {[%clk 0:00:35]} 50. Rf6 {[%clk 0:00:04]}  Nxg5 {[%clk 0:00:30]} 0-1


[Site "https://www.chess.com"]

[Event "Titled Tuesday Blitz October 31 Late 2023"]
[White "Sargsyan, Anna M."]
[Black "Aravindh, Chithambaram VR."]
[WhiteFideId "13308130"]
[BlackFideId "5072786"]
[WhiteElo "2574"]
[BlackElo "2873"]
[Result "0-1"]
[Round "2"]
[TimeControl "180+1"]
[Date "2023.10.31"]
[WhiteClock "0:00:00"]
[BlackClock "0:00:39"]
[Board "28"]

1. e4 {[%clk 0:02:42]}  Nf6 {[%clk 0:02:57]} 2. e5 {[%clk 0:02:41]}  Nd5 {[%clk 0:02:57]} 3. c4 {[%clk 0:02:39]}  Nb6 {[%clk 0:02:56]} 4. d4 {[%clk 0:02:40]}  d6 {[%clk 0:02:55]} 5. exd6 {[%clk 0:02:41]}  cxd6 {[%clk 0:02:55]} 6. Be3 {[%clk 0:02:39]}  g6 {[%clk 0:02:55]} 7. Nc3 {[%clk 0:02:38]}  Bg7 {[%clk 0:02:56]} 8. b3 {[%clk 0:02:39]}  O-O {[%clk 0:02:56]} 9. Rc1 {[%clk 0:02:40]}  Nc6 {[%clk 0:02:54]} 10. Be2 {[%clk 0:02:40]}  e5 {[%clk 0:02:54]} 11. dxe5 {[%clk 0:02:38]}  dxe5 {[%clk 0:02:53]} 12. Nf3 {[%clk 0:02:35]}  Nd4 {[%clk 0:02:53]} 13. O-O {[%clk 0:02:33]}  Re8 {[%clk 0:02:50]} 14. c5 {[%clk 0:02:27]}  Nxe2+ {[%clk 0:02:26]} 15. Qxe2 {[%clk 0:02:23]}  Nd5 {[%clk 0:02:27]} 16. Ne4 {[%clk 0:02:19]}  Nf4 {[%clk 0:02:22]} 17. Bxf4 {[%clk 0:01:48]}  exf4 {[%clk 0:02:23]} 18. Rcd1 {[%clk 0:01:48]}  Qe7 {[%clk 0:02:21]} 19. Rfe1 {[%clk 0:01:48]}  Bf5 {[%clk 0:02:21]} 20. Nfd2 {[%clk 0:01:37]}  Rad8 {[%clk 0:02:20]} 21. Qf1 {[%clk 0:01:31]}  Bxe4 {[%clk 0:02:14]} 22. Rxe4 {[%clk 0:01:21]}  Qxc5 {[%clk 0:02:14]} 23. Rxf4 {[%clk 0:01:11]}  Qc2 {[%clk 0:01:26]} 24. Rc4 {[%clk 0:01:06]}  Qxa2 {[%clk 0:01:22]} 25. Ne4 {[%clk 0:00:48]}  Qxb3 {[%clk 0:01:18]} 26. Nd6 {[%clk 0:00:45]}  Re6 {[%clk 0:00:48]} 27. Rb1 {[%clk 0:00:44]}  Qa2 {[%clk 0:00:48]} 28. Nxb7 {[%clk 0:00:43]}  Rde8 {[%clk 0:00:47]} 29. Rcc1 {[%clk 0:00:35]}  Re2 {[%clk 0:00:43]} 30. f3 {[%clk 0:00:29]}  Bd4+ {[%clk 0:00:40]} 31. Kh1 {[%clk 0:00:29]}  Rf2 {[%clk 0:00:40]} 32. Qg1 {[%clk 0:00:28]}  Ree2 {[%clk 0:00:39]} 33. Nd6 {[%clk 0:00:00]}  h5 {[%clk 0:00:39]} 0-1


[Site "https://www.chess.com"]

[Event "Titled Tuesday Blitz October 31 Late 2023"]
[White "Gokerkan, Cem Kaan"]
[Black "Kashefi, Amir Hosein"]
[WhiteFideId "6336760"]
[BlackFideId "12557935"]
[WhiteElo "2866"]
[BlackElo "2574"]
[Result "1-0"]
[Round "2"]
[TimeControl "180+1"]
[Date "2023.10.31"]
[WhiteClock "0:00:40"]
[BlackClock "0:00:00"]
[Board "29"]

1. e4 {[%clk 0:02:59]}  c6 {[%clk 0:02:59]} 2. d4 {[%clk 0:02:59]}  d5 {[%clk 0:03:00]} 3. e5 {[%clk 0:02:59]}  Bf5 {[%clk 0:02:59]} 4. h4 {[%clk 0:02:59]}  h5 {[%clk 0:02:59]} 5. c4 {[%clk 0:02:59]}  e6 {[%clk 0:02:59]} 6. Nc3 {[%clk 0:03:00]}  Ne7 {[%clk 0:02:58]} 7. Nge2 {[%clk 0:02:59]}  Nd7 {[%clk 0:02:56]} 8. Ng3 {[%clk 0:02:57]}  Bg6 {[%clk 0:02:55]} 9. Bg5 {[%clk 0:02:50]}  Qb6 {[%clk 0:02:51]} 10. Bd3 {[%clk 0:02:50]}  Qxb2 {[%clk 0:02:27]} 11. Rc1 {[%clk 0:02:49]}  dxc4 {[%clk 0:02:18]} 12. Bxg6 {[%clk 0:02:28]}  Nxg6 {[%clk 0:02:16]} 13. O-O {[%clk 0:02:28]}  Nb6 {[%clk 0:01:53]} 14. Nce4 {[%clk 0:02:23]}  Qxa2 {[%clk 0:01:43]} 15. f4 {[%clk 0:02:13]}  Qb3 {[%clk 0:01:39]} 16. Rc2 {[%clk 0:01:58]}  Be7 {[%clk 0:01:23]} 17. f5 {[%clk 0:01:54]}  exf5 {[%clk 0:00:53]} 18. Nxf5 {[%clk 0:01:48]}  Bxg5 {[%clk 0:00:54]} 19. Nfd6+ {[%clk 0:01:46]}  Kf8 {[%clk 0:00:45]} 20. Rxf7+ {[%clk 0:01:36]}  Kg8 {[%clk 0:00:45]} 21. Nxg5 {[%clk 0:01:21]}  Rh6 {[%clk 0:00:38]} 22. Qf1 {[%clk 0:01:01]}  Qxc2 {[%clk 0:00:10]} 23. Rxg7+ {[%clk 0:00:59]}  Kh8 {[%clk 0:00:10]} 24. Ndf7+ {[%clk 0:00:43]}  Kxg7 {[%clk 0:00:10]} 25. Qf6+ {[%clk 0:00:44]}  Kf8 {[%clk 0:00:06]} 26. Nxh6+ {[%clk 0:00:39]}  Ke8 {[%clk 0:00:07]} 27. Qf7+ {[%clk 0:00:39]}  Kd8 {[%clk 0:00:00]} 28. Ne6+ {[%clk 0:00:40]} 1-0


[Site "https://www.chess.com"]

[Event "Titled Tuesday Blitz October 31 Late 2023"]
[White "Asadli, Vugar"]
[Black "Arencibia Monduy, Antonio"]
[WhiteFideId "13405764"]
[BlackFideId "3507939"]
[WhiteElo "2857"]
[BlackElo "2571"]
[Result "1-0"]
[Round "2"]
[TimeControl "180+1"]
[Date "2023.10.31"]
[WhiteClock "0:00:33"]
[BlackClock "0:00:00"]
[Board "30"]

1. e4 {[%clk 0:03:00]}  b6 {[%clk 0:03:00]} 2. d4 {[%clk 0:02:59]}  e6 {[%clk 0:02:59]} 3. a3 {[%clk 0:02:54]}  Bb7 {[%clk 0:03:00]} 4. Nc3 {[%clk 0:02:54]}  Ne7 {[%clk 0:02:59]} 5. Nf3 {[%clk 0:02:53]}  Ng6 {[%clk 0:02:59]} 6. h4 {[%clk 0:02:51]}  h6 {[%clk 0:02:51]} 7. h5 {[%clk 0:02:50]}  Ne7 {[%clk 0:02:48]} 8. Bd3 {[%clk 0:02:45]}  d6 {[%clk 0:02:42]} 9. Qe2 {[%clk 0:02:42]}  a6 {[%clk 0:02:42]} 10. Bf4 {[%clk 0:02:30]}  Nd7 {[%clk 0:02:33]} 11. O-O-O {[%clk 0:02:30]}  b5 {[%clk 0:02:31]} 12. g4 {[%clk 0:02:29]}  Nb6 {[%clk 0:02:31]} 13. g5 {[%clk 0:02:27]}  hxg5 {[%clk 0:02:31]} 14. Nxg5 {[%clk 0:02:25]}  Qd7 {[%clk 0:02:21]} 15. Bg3 {[%clk 0:02:10]}  f6 {[%clk 0:01:58]} 16. Nf3 {[%clk 0:02:01]}  O-O-O {[%clk 0:01:54]} 17. Kb1 {[%clk 0:01:55]}  Kb8 {[%clk 0:01:30]} 18. Nd2 {[%clk 0:01:53]}  f5 {[%clk 0:01:19]} 19. Nb3 {[%clk 0:01:47]}  fxe4 {[%clk 0:01:11]} 20. Bxe4 {[%clk 0:01:48]}  Ned5 {[%clk 0:01:07]} 21. Nxd5 {[%clk 0:01:48]}  Nxd5 {[%clk 0:01:01]} 22. Na5 {[%clk 0:01:38]}  Ba8 {[%clk 0:01:01]} 23. Rc1 {[%clk 0:01:31]}  Be7 {[%clk 0:00:55]} 24. c4 {[%clk 0:01:30]}  bxc4 {[%clk 0:00:44]} 25. Qxc4 {[%clk 0:01:30]}  Nb6 {[%clk 0:00:34]} 26. Qc2 {[%clk 0:01:15]}  Bxe4 {[%clk 0:00:24]} 27. Qxe4 {[%clk 0:01:15]}  Nd5 {[%clk 0:00:20]} 28. Nc6+ {[%clk 0:01:13]}  Ka8 {[%clk 0:00:18]} 29. Qd3 {[%clk 0:01:07]}  Kb7 {[%clk 0:00:16]} 30. Qb3+ {[%clk 0:01:06]}  Nb6 {[%clk 0:00:15]} 31. Rhe1 {[%clk 0:01:02]}  Bg5 {[%clk 0:00:10]} 32. Rc2 {[%clk 0:00:59]}  Rc8 {[%clk 0:00:07]} 33. Rxe6 {[%clk 0:00:56]}  Rhe8 {[%clk 0:00:08]} 34. d5 {[%clk 0:00:54]}  Rf8 {[%clk 0:00:03]} 35. f4 {[%clk 0:00:43]}  Bf6 {[%clk 0:00:03]} 36. Bf2 {[%clk 0:00:41]}  Ra8 {[%clk 0:00:02]} 37. Na5+ {[%clk 0:00:39]}  Kc8 {[%clk 0:00:02]} 38. Bxb6 {[%clk 0:00:37]}  Rb8 {[%clk 0:00:02]} 39. Qe3 {[%clk 0:00:32]}  Rxb6 {[%clk 0:00:00]} 40. Qxb6 {[%clk 0:00:33]} 1-0


[Site "https://www.chess.com"]

[Event "Titled Tuesday Blitz October 31 Late 2023"]
[White "Zakhartsov, Vladimir"]
[Black "Ordekalog"]
[WhiteFideId "4145097"]
[WhiteElo "2836"]
[BlackElo "2564"]
[Result "0-1"]
[Round "2"]
[TimeControl "180+1"]
[Date "2023.10.31"]
[WhiteClock "0:00:12"]
[BlackClock "0:00:44"]
[Board "33"]

1. d4 {[%clk 0:03:00]}  d5 {[%clk 0:02:58]} 2. c4 {[%clk 0:03:01]}  e6 {[%clk 0:02:58]} 3. Nc3 {[%clk 0:03:00]}  c5 {[%clk 0:02:57]} 4. cxd5 {[%clk 0:03:00]}  exd5 {[%clk 0:02:57]} 5. Nf3 {[%clk 0:03:00]}  Nc6 {[%clk 0:02:57]} 6. g3 {[%clk 0:02:56]}  Nf6 {[%clk 0:02:56]} 7. Bg2 {[%clk 0:02:56]}  cxd4 {[%clk 0:02:55]} 8. Nxd4 {[%clk 0:02:55]}  Bc5 {[%clk 0:02:54]} 9. Nxc6 {[%clk 0:02:43]}  bxc6 {[%clk 0:02:54]} 10. O-O {[%clk 0:02:44]}  O-O {[%clk 0:02:51]} 11. Na4 {[%clk 0:02:44]}  Bb6 {[%clk 0:02:40]} 12. Bg5 {[%clk 0:02:32]}  h6 {[%clk 0:02:39]} 13. Bxf6 {[%clk 0:02:27]}  Qxf6 {[%clk 0:02:39]} 14. Rc1 {[%clk 0:02:27]}  Re8 {[%clk 0:02:37]} 15. b3 {[%clk 0:02:25]}  Ba6 {[%clk 0:02:36]} 16. Rc2 {[%clk 0:02:25]}  Re6 {[%clk 0:02:18]} 17. Bf3 {[%clk 0:02:24]}  Rae8 {[%clk 0:02:16]} 18. Kg2 {[%clk 0:02:04]}  g6 {[%clk 0:02:13]} 19. Re1 {[%clk 0:02:00]}  h5 {[%clk 0:02:05]} 20. h4 {[%clk 0:01:56]}  Ba5 {[%clk 0:01:56]} 21. Rh1 {[%clk 0:01:53]}  Bb6 {[%clk 0:01:49]} 22. Nb2 {[%clk 0:01:46]}  Bxe2 {[%clk 0:01:43]} 23. Rxe2 {[%clk 0:01:13]}  Rxe2 {[%clk 0:01:43]} 24. Nd3 {[%clk 0:01:14]}  Rxa2 {[%clk 0:01:37]} 25. Qc1 {[%clk 0:01:02]}  Kg7 {[%clk 0:01:31]} 26. Rd1 {[%clk 0:01:00]}  Qd4 {[%clk 0:01:22]} 27. Kh1 {[%clk 0:00:54]}  Rxf2 {[%clk 0:01:12]} 28. Nxf2 {[%clk 0:00:49]}  Qxf2 {[%clk 0:01:13]} 29. Qc3+ {[%clk 0:00:40]}  d4 {[%clk 0:00:56]} 30. Qxc6 {[%clk 0:00:34]}  Re3 {[%clk 0:00:55]} 31. Bg2 {[%clk 0:00:28]}  Qxg3 {[%clk 0:00:49]} 32. Rf1 {[%clk 0:00:25]}  Qxh4+ {[%clk 0:00:47]} 33. Kg1 {[%clk 0:00:25]}  d3 {[%clk 0:00:47]} 34. Rxf7+ {[%clk 0:00:17]}  Kxf7 {[%clk 0:00:46]} 35. Qd7+ {[%clk 0:00:12]}  Re7+ {[%clk 0:00:44]} 0-1


[Site "https://www.chess.com"]

[Event "Titled Tuesday Blitz October 31 Late 2023"]
[White "Pakleza, Zbigniew"]
[Black "Shapiro, Viktor"]
[WhiteFideId "1119290"]
[BlackFideId "4175700"]
[WhiteElo "2829"]
[BlackElo "2563"]
[Result "0-1"]
[Round "2"]
[TimeControl "180+1"]
[Date "2023.10.31"]
[WhiteClock "0:00:00"]
[BlackClock "0:00:17"]
[Board "35"]

1. d4 {[%clk 0:03:00]}  Nf6 {[%clk 0:03:00]} 2. Nf3 {[%clk 0:03:01]}  e6 {[%clk 0:03:00]} 3. Bf4 {[%clk 0:03:01]}  c5 {[%clk 0:03:00]} 4. c3 {[%clk 0:03:01]}  Qb6 {[%clk 0:02:59]} 5. Qb3 {[%clk 0:03:01]}  Nc6 {[%clk 0:02:58]} 6. e3 {[%clk 0:03:01]}  d5 {[%clk 0:02:58]} 7. Nbd2 {[%clk 0:03:01]}  Be7 {[%clk 0:02:54]} 8. h3 {[%clk 0:03:01]}  O-O {[%clk 0:02:54]} 9. Be2 {[%clk 0:03:02]}  c4 {[%clk 0:02:53]} 10. Qc2 {[%clk 0:03:02]}  Qd8 {[%clk 0:02:52]} 11. O-O {[%clk 0:03:01]}  a6 {[%clk 0:02:52]} 12. e4 {[%clk 0:02:59]}  b5 {[%clk 0:02:49]} 13. e5 {[%clk 0:02:52]}  Nd7 {[%clk 0:02:48]} 14. g3 {[%clk 0:02:52]}  f6 {[%clk 0:02:42]} 15. exf6 {[%clk 0:02:49]}  Bxf6 {[%clk 0:02:41]} 16. Rfe1 {[%clk 0:02:39]}  e5 {[%clk 0:02:17]} 17. dxe5 {[%clk 0:02:36]}  Ndxe5 {[%clk 0:02:17]} 18. Bf1 {[%clk 0:02:18]}  Nd3 {[%clk 0:02:15]} 19. Bxd3 {[%clk 0:02:16]}  cxd3 {[%clk 0:02:16]} 20. Qxd3 {[%clk 0:02:17]}  Bxh3 {[%clk 0:02:16]} 21. Nb3 {[%clk 0:02:06]}  d4 {[%clk 0:02:09]} 22. Nfxd4 {[%clk 0:01:45]}  g5 {[%clk 0:01:47]} 23. Bd2 {[%clk 0:01:08]}  Ne5 {[%clk 0:01:43]} 24. Qe4 {[%clk 0:01:03]}  Bg7 {[%clk 0:01:37]} 25. Be3 {[%clk 0:00:40]}  Bg4 {[%clk 0:01:27]} 26. Nd2 {[%clk 0:00:24]}  Qf6 {[%clk 0:01:16]} 27. f4 {[%clk 0:00:20]}  gxf4 {[%clk 0:01:09]} 28. Bxf4 {[%clk 0:00:21]}  Ng6 {[%clk 0:01:06]} 29. Rf1 {[%clk 0:00:09]}  Rae8 {[%clk 0:01:05]} 30. Qg2 {[%clk 0:00:08]}  Qb6 {[%clk 0:00:59]} 31. Nb3 {[%clk 0:00:04]}  Re2 {[%clk 0:00:55]} 32. Qc6 {[%clk 0:00:03]}  Qxc6 {[%clk 0:00:49]} 33. Nxc6 {[%clk 0:00:04]}  Rxb2 {[%clk 0:00:47]} 34. Nbd4 {[%clk 0:00:04]}  Bh3 {[%clk 0:00:41]} 35. Rf2 {[%clk 0:00:04]}  Rxf2 {[%clk 0:00:41]} 36. Kxf2 {[%clk 0:00:05]}  Nxf4 {[%clk 0:00:41]} 37. gxf4 {[%clk 0:00:05]}  Bd7 {[%clk 0:00:38]} 38. Ke3 {[%clk 0:00:02]}  Bxc6 {[%clk 0:00:35]} 39. Nxc6 {[%clk 0:00:03]}  Bxc3 {[%clk 0:00:35]} 40. Rc1 {[%clk 0:00:03]}  b4 {[%clk 0:00:29]} 41. Rc2 {[%clk 0:00:03]}  Re8+ {[%clk 0:00:26]} 42. Kd3 {[%clk 0:00:02]}  h5 {[%clk 0:00:23]} 43. Kc4 {[%clk 0:00:03]}  Re4+ {[%clk 0:00:23]} 44. Kd5 {[%clk 0:00:03]}  Rxf4 {[%clk 0:00:23]} 45. Re2 {[%clk 0:00:03]}  h4 {[%clk 0:00:22]} 46. Ne7+ {[%clk 0:00:03]}  Kf7 {[%clk 0:00:22]} 47. Nc6 {[%clk 0:00:02]}  Kf6 {[%clk 0:00:21]} 48. Nd8 {[%clk 0:00:03]}  h3 {[%clk 0:00:20]} 49. Ne6 {[%clk 0:00:04]}  Rf3 {[%clk 0:00:20]} 50. Nc5 {[%clk 0:00:02]}  Kf5 {[%clk 0:00:18]} 51. Ne4 {[%clk 0:00:01]}  Rd3+ {[%clk 0:00:17]} 52. Kc4 {[%clk 0:00:00]}  Rd4+ {[%clk 0:00:17]} 0-1


[Site "https://www.chess.com"]

[Event "Titled Tuesday Blitz October 31 Late 2023"]
[White "Sanchez Alvares, Kelvin Antonio"]
[Black "Brodsky, David"]
[WhiteFideId "3906680"]
[BlackFideId "2073250"]
[WhiteElo "2562"]
[BlackElo "2811"]
[Result "1-0"]
[Round "2"]
[TimeControl "180+1"]
[Date "2023.10.31"]
[WhiteClock "0:00:22"]
[BlackClock "0:00:04"]
[Board "36"]

1. e4 {[%clk 0:03:00]}  e5 {[%clk 0:02:59]} 2. Nf3 {[%clk 0:03:00]}  Nc6 {[%clk 0:03:00]} 3. Bb5 {[%clk 0:03:00]}  a6 {[%clk 0:03:00]} 4. Ba4 {[%clk 0:03:01]}  Nf6 {[%clk 0:03:01]} 5. O-O {[%clk 0:03:00]}  b5 {[%clk 0:02:53]} 6. Bb3 {[%clk 0:03:00]}  Bb7 {[%clk 0:02:54]} 7. Re1 {[%clk 0:02:57]}  Bc5 {[%clk 0:02:52]} 8. d3 {[%clk 0:02:54]}  d6 {[%clk 0:02:50]} 9. Nc3 {[%clk 0:02:52]}  h6 {[%clk 0:02:49]} 10. h3 {[%clk 0:02:51]}  O-O {[%clk 0:02:43]} 11. Be3 {[%clk 0:02:50]}  Bxe3 {[%clk 0:02:35]} 12. fxe3 {[%clk 0:02:50]}  Na5 {[%clk 0:02:35]} 13. Qd2 {[%clk 0:02:36]}  Re8 {[%clk 0:02:26]} 14. Qf2 {[%clk 0:02:29]}  Nxb3 {[%clk 0:02:22]} 15. axb3 {[%clk 0:02:28]}  b4 {[%clk 0:01:52]} 16. Ne2 {[%clk 0:02:23]}  d5 {[%clk 0:01:51]} 17. exd5 {[%clk 0:02:22]}  e4 {[%clk 0:01:49]} 18. Nfd4 {[%clk 0:02:07]}  Nxd5 {[%clk 0:01:33]} 19. Ng3 {[%clk 0:01:53]}  exd3 {[%clk 0:01:29]} 20. cxd3 {[%clk 0:01:52]}  Qg5 {[%clk 0:01:19]} 21. Ndf5 {[%clk 0:01:38]}  Ne7 {[%clk 0:00:27]} 22. e4 {[%clk 0:01:30]}  Nxf5 {[%clk 0:00:24]} 23. Nxf5 {[%clk 0:01:31]}  Bc8 {[%clk 0:00:18]} 24. h4 {[%clk 0:01:11]}  Qf6 {[%clk 0:00:13]} 25. Ne3 {[%clk 0:01:08]}  Qxf2+ {[%clk 0:00:11]} 26. Kxf2 {[%clk 0:01:08]}  Be6 {[%clk 0:00:09]} 27. Rec1 {[%clk 0:01:04]}  Rad8 {[%clk 0:00:06]} 28. Ke2 {[%clk 0:01:02]}  f5 {[%clk 0:00:06]} 29. Rxa6 {[%clk 0:00:53]}  fxe4 {[%clk 0:00:05]} 30. dxe4 {[%clk 0:00:53]}  Bxb3 {[%clk 0:00:06]} 31. Rxc7 {[%clk 0:00:50]}  Rxe4 {[%clk 0:00:04]} 32. Kf3 {[%clk 0:00:47]}  Rde8 {[%clk 0:00:03]} 33. Nf5 {[%clk 0:00:42]}  Bd1+ {[%clk 0:00:04]} 34. Kg3 {[%clk 0:00:36]}  Rg4+ {[%clk 0:00:04]} 35. Kh2 {[%clk 0:00:36]}  h5 {[%clk 0:00:04]} 36. Raa7 {[%clk 0:00:35]}  Re5 {[%clk 0:00:03]} 37. Rxg7+ {[%clk 0:00:33]}  Rxg7 {[%clk 0:00:03]} 38. Rxg7+ {[%clk 0:00:33]}  Kf8 {[%clk 0:00:04]} 39. Rg5 {[%clk 0:00:33]}  Bg4 {[%clk 0:00:03]} 40. Ng3 {[%clk 0:00:30]}  Rxg5 {[%clk 0:00:02]} 41. hxg5 {[%clk 0:00:31]}  Kg7 {[%clk 0:00:03]} 42. Ne4 {[%clk 0:00:26]}  Kg6 {[%clk 0:00:04]} 43. Nf6 {[%clk 0:00:24]}  Kxg5 {[%clk 0:00:03]} 44. Nd5 {[%clk 0:00:24]}  Be6 {[%clk 0:00:03]} 45. Nxb4 {[%clk 0:00:23]}  Kg4 {[%clk 0:00:02]} 46. Nd3 {[%clk 0:00:23]}  h4 {[%clk 0:00:03]} 47. b4 {[%clk 0:00:22]}  Kf5 {[%clk 0:00:03]} 48. Nc5 {[%clk 0:00:19]}  Bc4 {[%clk 0:00:03]} 49. Kh3 {[%clk 0:00:20]}  Kg5 {[%clk 0:00:03]} 50. Ne4+ {[%clk 0:00:19]}  Kh5 {[%clk 0:00:04]} 51. Nd6 {[%clk 0:00:19]}  Be6+ {[%clk 0:00:04]} 52. Kh2 {[%clk 0:00:20]}  Bd5 {[%clk 0:00:01]} 53. b5 {[%clk 0:00:20]}  Kg5 {[%clk 0:00:02]} 54. b6 {[%clk 0:00:21]}  Kf6 {[%clk 0:00:03]} 55. b7 {[%clk 0:00:21]}  Bxb7 {[%clk 0:00:03]} 56. Nxb7 {[%clk 0:00:22]}  Kf5 {[%clk 0:00:04]} 57. Nc5 {[%clk 0:00:22]}  Kg5 {[%clk 0:00:05]} 58. Ne4+ {[%clk 0:00:21]}  Kg4 {[%clk 0:00:04]} 59. Nf2+ {[%clk 0:00:22]} 1-0


[Site "https://www.chess.com"]

[Event "Titled Tuesday Blitz October 31 Late 2023"]
[White "Kobo, Ori"]
[Black "Wartiovaara, Oliver"]
[WhiteFideId "2812320"]
[BlackFideId "513024"]
[WhiteElo "2809"]
[BlackElo "2559"]
[Result "1-0"]
[Round "2"]
[TimeControl "180+1"]
[Date "2023.10.31"]
[WhiteClock "0:02:05"]
[BlackClock "0:01:25"]
[Board "37"]

1. d4 {[%clk 0:03:00]}  Nf6 {[%clk 0:02:57]} 2. Nf3 {[%clk 0:03:01]}  d5 {[%clk 0:02:52]} 3. e3 {[%clk 0:03:01]}  e6 {[%clk 0:02:52]} 4. b3 {[%clk 0:03:01]}  b6 {[%clk 0:02:48]} 5. Bb2 {[%clk 0:03:01]}  Bb7 {[%clk 0:02:48]} 6. Nbd2 {[%clk 0:03:02]}  Nbd7 {[%clk 0:02:48]} 7. Bd3 {[%clk 0:03:00]}  Bd6 {[%clk 0:02:48]} 8. O-O {[%clk 0:03:00]}  O-O {[%clk 0:02:48]} 9. c4 {[%clk 0:03:00]}  c5 {[%clk 0:02:47]} 10. cxd5 {[%clk 0:02:59]}  Nxd5 {[%clk 0:02:43]} 11. Ne4 {[%clk 0:02:58]}  Be7 {[%clk 0:02:36]} 12. Ng3 {[%clk 0:02:57]}  cxd4 {[%clk 0:02:36]} 13. Bxd4 {[%clk 0:02:50]}  Bf6 {[%clk 0:02:33]} 14. Rc1 {[%clk 0:02:38]}  Bxd4 {[%clk 0:02:27]} 15. Nxd4 {[%clk 0:02:39]}  Qf6 {[%clk 0:02:08]} 16. Ne4 {[%clk 0:02:30]}  Qe5 {[%clk 0:01:59]} 17. Nc6 {[%clk 0:02:25]}  Bxc6 {[%clk 0:01:55]} 18. Rxc6 {[%clk 0:02:25]}  Rfc8 {[%clk 0:01:51]} 19. Qc2 {[%clk 0:02:14]}  Rxc6 {[%clk 0:01:37]} 20. Qxc6 {[%clk 0:02:15]}  Rd8 {[%clk 0:01:37]} 21. Rc1 {[%clk 0:02:06]}  Nb4 {[%clk 0:01:25]} 22. Qxd7 {[%clk 0:02:05]} 1-0


[Site "https://www.chess.com"]

[Event "Titled Tuesday Blitz October 31 Late 2023"]
[White "Sokolovsky, Yahli"]
[Black "Aldokhin, Ivan"]
[WhiteFideId "2820242"]
[BlackFideId "24115720"]
[WhiteElo "2794"]
[BlackElo "2557"]
[Result "1-0"]
[Round "2"]
[TimeControl "180+1"]
[Date "2023.10.31"]
[WhiteClock "0:00:22"]
[BlackClock "0:00:13"]
[Board "39"]

1. b3 {[%clk 0:03:00]}  d5 {[%clk 0:02:59]} 2. Bb2 {[%clk 0:03:01]}  Bg4 {[%clk 0:03:00]} 3. h3 {[%clk 0:03:02]}  Bh5 {[%clk 0:02:59]} 4. Nf3 {[%clk 0:03:02]}  Bxf3 {[%clk 0:02:59]} 5. exf3 {[%clk 0:03:03]}  e6 {[%clk 0:03:00]} 6. g3 {[%clk 0:03:04]}  Nf6 {[%clk 0:03:00]} 7. Bg2 {[%clk 0:03:04]}  g6 {[%clk 0:03:00]} 8. c4 {[%clk 0:03:00]}  c6 {[%clk 0:02:59]} 9. O-O {[%clk 0:02:52]}  Bg7 {[%clk 0:02:59]} 10. f4 {[%clk 0:02:50]}  O-O {[%clk 0:02:59]} 11. d3 {[%clk 0:02:50]}  a5 {[%clk 0:02:58]} 12. Nc3 {[%clk 0:02:50]}  Na6 {[%clk 0:02:55]} 13. Qe2 {[%clk 0:02:44]}  Qb6 {[%clk 0:02:54]} 14. Na4 {[%clk 0:02:40]}  Qa7 {[%clk 0:02:52]} 15. Qe3 {[%clk 0:02:31]}  Nb4 {[%clk 0:02:22]} 16. Bd4 {[%clk 0:02:17]}  Qb8 {[%clk 0:02:20]} 17. Rfc1 {[%clk 0:01:59]}  b5 {[%clk 0:01:56]} 18. cxb5 {[%clk 0:01:59]}  cxb5 {[%clk 0:01:56]} 19. Nb6 {[%clk 0:01:48]}  Ra6 {[%clk 0:01:52]} 20. a3 {[%clk 0:01:47]}  Rxb6 {[%clk 0:01:31]} 21. Bxb6 {[%clk 0:01:31]}  d4 {[%clk 0:01:31]} 22. Bxd4 {[%clk 0:01:21]}  Nbd5 {[%clk 0:01:31]} 23. Qd2 {[%clk 0:01:18]}  Rd8 {[%clk 0:01:28]} 24. Qb2 {[%clk 0:01:17]}  Nh5 {[%clk 0:01:14]} 25. Bxg7 {[%clk 0:01:09]}  Nxg7 {[%clk 0:01:15]} 26. Qd2 {[%clk 0:01:00]}  Nf5 {[%clk 0:01:02]} 27. Qxa5 {[%clk 0:00:56]}  Nd4 {[%clk 0:01:03]} 28. Rcb1 {[%clk 0:00:38]}  Ne2+ {[%clk 0:00:58]} 29. Kf1 {[%clk 0:00:34]}  Nd4 {[%clk 0:00:35]} 30. Qd2 {[%clk 0:00:29]}  b4 {[%clk 0:00:29]} 31. axb4 {[%clk 0:00:23]}  Nxb4 {[%clk 0:00:30]} 32. Ra8 {[%clk 0:00:21]}  Qxa8 {[%clk 0:00:16]} 33. Bxa8 {[%clk 0:00:22]}  Nd5 {[%clk 0:00:15]} 34. Bxd5 {[%clk 0:00:21]}  Rxd5 {[%clk 0:00:13]} 35. b4 {[%clk 0:00:22]} 1-0


[Site "https://www.chess.com"]